[Event "Titled Tuesday Blitz July 26 Early 2022"]
[White "Svane, Frederik"]
[Black "Kuderinov, Kirill"]
[WhiteFideId "12923044"]
[BlackFideId "13701568"]
[WhiteElo "2459"]
[BlackElo "2465"]
[Result "0-1"]
[Round "10"]
[TimeControl "180+1"]
[Date "2022.07.26"]
[WhiteClock "0:00:01"]
[BlackClock "0:00:16"]

1. a3 {[%clk 0:03:00]}  a6 {[%clk 0:02:56]} 2. d4 {[%clk 0:03:01]}  Nf6 {[%clk 0:02:56]} 3. Nf3 {[%clk 0:03:02]}  e6 {[%clk 0:02:56]} 4. Nc3 {[%clk 0:02:47]}  d5 {[%clk 0:02:51]} 5. Bf4 {[%clk 0:02:48]}  Be7 {[%clk 0:02:50]} 6. e3 {[%clk 0:02:48]}  O-O {[%clk 0:02:50]} 7. Bd3 {[%clk 0:02:49]}  Nbd7 {[%clk 0:02:49]} 8. O-O {[%clk 0:02:49]}  c5 {[%clk 0:02:50]} 9. Ne5 {[%clk 0:02:43]}  Nxe5 {[%clk 0:02:47]} 10. Bxe5 {[%clk 0:02:38]}  c4 {[%clk 0:02:47]} 11. Be2 {[%clk 0:02:37]}  b5 {[%clk 0:02:47]} 12. Bf3 {[%clk 0:02:27]}  Bb7 {[%clk 0:02:47]} 13. Re1 {[%clk 0:02:28]}  Bd6 {[%clk 0:02:43]} 14. Bxf6 {[%clk 0:02:24]}  Qxf6 {[%clk 0:02:42]} 15. e4 {[%clk 0:02:25]}  dxe4 {[%clk 0:02:40]} 16. Bxe4 {[%clk 0:02:26]}  Bxe4 {[%clk 0:02:02]} 17. Nxe4 {[%clk 0:02:27]}  Qd8 {[%clk 0:02:00]} 18. Qh5 {[%clk 0:01:48]}  Be7 {[%clk 0:01:55]} 19. Rad1 {[%clk 0:01:40]}  Ra7 {[%clk 0:01:47]} 20. d5 {[%clk 0:01:34]}  exd5 {[%clk 0:01:44]} 21. Rxd5 {[%clk 0:01:33]}  Rd7 {[%clk 0:01:43]} 22. Red1 {[%clk 0:01:11]}  Rxd5 {[%clk 0:01:42]} 23. Rxd5 {[%clk 0:01:11]}  Qc8 {[%clk 0:01:37]} 24. Qd1 {[%clk 0:01:00]}  Qe6 {[%clk 0:01:33]} 25. Ng3 {[%clk 0:00:54]}  Re8 {[%clk 0:01:31]} 26. Kf1 {[%clk 0:00:38]}  g6 {[%clk 0:01:26]} 27. Rd2 {[%clk 0:00:28]}  c3 {[%clk 0:01:14]} 28. Re2 {[%clk 0:00:25]}  Qc6 {[%clk 0:00:44]} 29. b4 {[%clk 0:00:22]}  Rd8 {[%clk 0:00:39]} 30. Qe1 {[%clk 0:00:20]}  Bf8 {[%clk 0:00:34]} 31. Ne4 {[%clk 0:00:14]}  Rc8 {[%clk 0:00:27]} 32. h3 {[%clk 0:00:02]}  Bg7 {[%clk 0:00:25]} 33. Kg1 {[%clk 0:00:02]}  h6 {[%clk 0:00:25]} 34. Nc5 {[%clk 0:00:03]}  a5 {[%clk 0:00:25]} 35. Nd3 {[%clk 0:00:01]}  axb4 {[%clk 0:00:24]} 36. axb4 {[%clk 0:00:02]}  Rd8 {[%clk 0:00:22]} 37. g3 {[%clk 0:00:01]}  Kh7 {[%clk 0:00:22]} 38. Nc5 {[%clk 0:00:01]}  Qf3 {[%clk 0:00:20]} 39. Ne4 {[%clk 0:00:01]}  Qf5 {[%clk 0:00:16]} 0-1


[Site "https://www.chess.com"]

[Event "Titled Tuesday Blitz July 26 Early 2022"]
[White "Timofeev, Artyom"]
[Black "Srihari L R"]
[WhiteFideId "4140419"]
[BlackFideId "46617116"]
[WhiteElo "2578"]
[BlackElo "2170"]
[Result "1-0"]
[Round "10"]
[TimeControl "180+1"]
[Date "2022.07.26"]
[WhiteClock "0:00:20"]
[BlackClock "0:00:07"]

1. e4 {[%clk 0:03:00]}  c5 {[%clk 0:02:55]} 2. Nc3 {[%clk 0:03:00]}  a6 {[%clk 0:02:55]} 3. d4 {[%clk 0:02:57]}  cxd4 {[%clk 0:02:54]} 4. Qxd4 {[%clk 0:02:58]}  Nc6 {[%clk 0:02:55]} 5. Qe3 {[%clk 0:02:58]}  d6 {[%clk 0:02:52]} 6. b3 {[%clk 0:02:53]}  Nf6 {[%clk 0:02:48]} 7. Bb2 {[%clk 0:02:53]}  e6 {[%clk 0:02:48]} 8. O-O-O {[%clk 0:02:52]}  Be7 {[%clk 0:02:48]} 9. f4 {[%clk 0:02:51]}  Ng4 {[%clk 0:02:45]} 10. Qd2 {[%clk 0:02:49]}  Qb6 {[%clk 0:02:43]} 11. Nh3 {[%clk 0:02:37]}  Bd7 {[%clk 0:02:38]} 12. Be2 {[%clk 0:02:36]}  h5 {[%clk 0:02:37]} 13. Bxg4 {[%clk 0:02:32]}  hxg4 {[%clk 0:02:36]} 14. Nf2 {[%clk 0:02:32]}  Rc8 {[%clk 0:01:50]} 15. Nxg4 {[%clk 0:02:31]}  Rh5 {[%clk 0:01:45]} 16. e5 {[%clk 0:02:14]}  d5 {[%clk 0:01:33]} 17. Kb1 {[%clk 0:02:13]}  a5 {[%clk 0:01:24]} 18. Nf2 {[%clk 0:02:04]}  Nb4 {[%clk 0:01:12]} 19. a3 {[%clk 0:01:45]}  Na6 {[%clk 0:01:09]} 20. Nd3 {[%clk 0:01:43]}  g6 {[%clk 0:01:07]} 21. Ne2 {[%clk 0:01:40]}  a4 {[%clk 0:01:05]} 22. b4 {[%clk 0:01:40]}  Bb5 {[%clk 0:01:05]} 23. Nd4 {[%clk 0:01:40]}  Bc4 {[%clk 0:01:03]} 24. g4 {[%clk 0:01:36]}  Rh3 {[%clk 0:01:03]} 25. f5 {[%clk 0:01:36]}  Bxd3 {[%clk 0:01:02]} 26. cxd3 {[%clk 0:01:36]}  Nxb4 {[%clk 0:01:01]} 27. fxg6 {[%clk 0:01:06]}  fxg6 {[%clk 0:01:00]} 28. axb4 {[%clk 0:01:01]}  Bxb4 {[%clk 0:01:00]} 29. Qg5 {[%clk 0:01:02]}  Bc3 {[%clk 0:00:16]} 30. Qxg6+ {[%clk 0:01:01]}  Ke7 {[%clk 0:00:15]} 31. Nf5+ {[%clk 0:00:50]}  Kd8 {[%clk 0:00:12]} 32. Rd2 {[%clk 0:00:35]}  Bxd2 {[%clk 0:00:12]} 33. Qf7 {[%clk 0:00:21]}  exf5 {[%clk 0:00:10]} 34. e6 {[%clk 0:00:21]}  Qd6 {[%clk 0:00:07]} 35. Bf6+ {[%clk 0:00:20]} 1-0


[Site "https://www.chess.com"]

[Event "Titled Tuesday Blitz July 26 Early 2022"]
[White "Toncheva, Nadya"]
[Black "Sadubayev, Airat"]
[WhiteFideId "2924056"]
[BlackFideId "13713264"]
[WhiteElo "1888"]
[BlackElo "2163"]
[Result "1/2-1/2"]
[Round "10"]
[TimeControl "180+1"]
[Date "2022.07.26"]
[WhiteClock "0:00:07"]
[BlackClock "0:00:07"]

1. e4 {[%clk 0:03:00]}  e5 {[%clk 0:03:00]} 2. Nf3 {[%clk 0:03:01]}  Nc6 {[%clk 0:03:00]} 3. Bb5 {[%clk 0:03:01]}  a6 {[%clk 0:03:00]} 4. Ba4 {[%clk 0:03:01]}  Nf6 {[%clk 0:03:00]} 5. O-O {[%clk 0:03:02]}  b5 {[%clk 0:03:00]} 6. Bb3 {[%clk 0:03:02]}  Bc5 {[%clk 0:03:01]} 7. Re1 {[%clk 0:02:59]}  O-O {[%clk 0:02:48]} 8. c3 {[%clk 0:02:55]}  d6 {[%clk 0:02:46]} 9. d4 {[%clk 0:02:52]}  Bb6 {[%clk 0:02:42]} 10. h3 {[%clk 0:02:50]}  Rb8 {[%clk 0:02:23]} 11. Bg5 {[%clk 0:02:46]}  h6 {[%clk 0:02:23]} 12. Bh4 {[%clk 0:02:41]}  Bd7 {[%clk 0:02:21]} 13. a4 {[%clk 0:02:32]}  g5 {[%clk 0:01:49]} 14. Bg3 {[%clk 0:02:32]}  Qe7 {[%clk 0:01:49]} 15. d5 {[%clk 0:02:26]}  Na5 {[%clk 0:01:43]} 16. Bc2 {[%clk 0:02:24]}  Kg7 {[%clk 0:01:36]} 17. Nbd2 {[%clk 0:02:23]}  Nc4 {[%clk 0:01:27]} 18. axb5 {[%clk 0:02:16]}  axb5 {[%clk 0:01:26]} 19. Nxc4 {[%clk 0:02:10]}  bxc4 {[%clk 0:01:27]} 20. Qe2 {[%clk 0:02:08]}  Bc5 {[%clk 0:01:27]} 21. Ra2 {[%clk 0:02:05]}  Nh5 {[%clk 0:01:18]} 22. Bh2 {[%clk 0:02:03]}  Nf4 {[%clk 0:01:18]} 23. Bxf4 {[%clk 0:01:56]}  gxf4 {[%clk 0:01:19]} 24. Ba4 {[%clk 0:01:44]}  Bxa4 {[%clk 0:01:14]} 25. Rxa4 {[%clk 0:01:44]}  Kh8 {[%clk 0:01:08]} 26. Rxc4 {[%clk 0:01:44]}  Rg8 {[%clk 0:01:07]} 27. b4 {[%clk 0:01:40]}  Bb6 {[%clk 0:01:07]} 28. Rc6 {[%clk 0:01:31]}  Rg7 {[%clk 0:01:07]} 29. Ra1 {[%clk 0:01:17]}  Rbg8 {[%clk 0:01:07]} 30. Ne1 {[%clk 0:01:16]}  Rg3 {[%clk 0:01:02]} 31. Kf1 {[%clk 0:01:08]}  R3g6 {[%clk 0:00:58]} 32. Qh5 {[%clk 0:00:59]}  Kh7 {[%clk 0:00:56]} 33. c4 {[%clk 0:00:57]}  f3 {[%clk 0:00:48]} 34. gxf3 {[%clk 0:00:48]}  Rg1+ {[%clk 0:00:46]} 35. Ke2 {[%clk 0:00:48]}  Bd4 {[%clk 0:00:42]} 36. Rd1 {[%clk 0:00:33]}  R8g5 {[%clk 0:00:36]} 37. Qh4 {[%clk 0:00:29]}  Rh1 {[%clk 0:00:21]} 38. f4 {[%clk 0:00:24]}  exf4 {[%clk 0:00:20]} 39. Rxd4 {[%clk 0:00:22]}  Rxe1+ {[%clk 0:00:17]} 40. Kd2 {[%clk 0:00:09]}  Rxe4 {[%clk 0:00:15]} 41. Rxe4 {[%clk 0:00:06]}  Qxe4 {[%clk 0:00:16]} 42. Rxc7 {[%clk 0:00:05]}  Kg7 {[%clk 0:00:15]} 43. c5 {[%clk 0:00:03]}  Rxd5+ {[%clk 0:00:12]} 44. Kc3 {[%clk 0:00:03]}  Qd3+ {[%clk 0:00:11]} 45. Kb2 {[%clk 0:00:03]}  Qd2+ {[%clk 0:00:11]} 46. Kb3 {[%clk 0:00:03]}  Qd1+ {[%clk 0:00:11]} 47. Kc3 {[%clk 0:00:02]}  Rd3+ {[%clk 0:00:11]} 48. Kc4 {[%clk 0:00:02]}  Qc2+ {[%clk 0:00:09]} 49. Kb5 {[%clk 0:00:03]}  Rd5 {[%clk 0:00:07]} 50. Qg4+ {[%clk 0:00:03]}  Rg5 {[%clk 0:00:07]} 51. Qc8 {[%clk 0:00:02]}  Qd3+ {[%clk 0:00:05]} 52. Kb6 {[%clk 0:00:01]}  dxc5 {[%clk 0:00:05]} 53. Rxc5 {[%clk 0:00:01]}  Qd6+ {[%clk 0:00:05]} 54. Qc6 {[%clk 0:00:01]}  Qd8+ {[%clk 0:00:05]} 55. Qc7 {[%clk 0:00:01]}  Qf6+ {[%clk 0:00:05]} 56. Rc6 {[%clk 0:00:01]}  Qd4+ {[%clk 0:00:05]} 57. Kb7 {[%clk 0:00:02]}  Qxb4+ {[%clk 0:00:06]} 58. Kc8 {[%clk 0:00:02]}  Qf8+ {[%clk 0:00:05]} 59. Qd8 {[%clk 0:00:02]}  Qxd8+ {[%clk 0:00:03]} 60. Kxd8 {[%clk 0:00:03]}  Rg2 {[%clk 0:00:04]} 61. Rd6 {[%clk 0:00:02]}  Rxf2 {[%clk 0:00:04]} 62. Rd4 {[%clk 0:00:02]}  f3 {[%clk 0:00:03]} 63. Ke7 {[%clk 0:00:02]}  Rf1 {[%clk 0:00:03]} 64. Rf4 {[%clk 0:00:03]}  f2 {[%clk 0:00:02]} 65. Rxf7+ {[%clk 0:00:02]}  Kg6 {[%clk 0:00:02]} 66. Kf8 {[%clk 0:00:03]}  h5 {[%clk 0:00:02]} 67. Rf3 {[%clk 0:00:03]}  Kg5 {[%clk 0:00:03]} 68. Kf7 {[%clk 0:00:03]}  Kh4 {[%clk 0:00:02]} 69. Kf6 {[%clk 0:00:03]}  Rh1 {[%clk 0:00:02]} 70. Rxf2 {[%clk 0:00:03]}  Rxh3 {[%clk 0:00:03]} 71. Kf5 {[%clk 0:00:03]}  Rg3 {[%clk 0:00:03]} 72. Kf4 {[%clk 0:00:03]}  Rg4+ {[%clk 0:00:03]} 73. Kf3 {[%clk 0:00:03]}  Kg5 {[%clk 0:00:04]} 74. Rh2 {[%clk 0:00:03]}  h4 {[%clk 0:00:04]} 75. Rg2 {[%clk 0:00:03]}  Rxg2 {[%clk 0:00:02]} 76. Kxg2 {[%clk 0:00:04]}  Kg4 {[%clk 0:00:03]} 77. Kh2 {[%clk 0:00:05]}  h3 {[%clk 0:00:04]} 78. Kh1 {[%clk 0:00:05]}  Kh4 {[%clk 0:00:05]} 79. Kg1 {[%clk 0:00:05]}  Kg4 {[%clk 0:00:06]} 80. Kh1 {[%clk 0:00:06]}  Kg3 {[%clk 0:00:06]} 81. Kg1 {[%clk 0:00:06]}  h2+ {[%clk 0:00:07]} 82. Kh1 {[%clk 0:00:07]}  Kh3 {[%clk 0:00:07]} 1/2-1/2


[Site "https://www.chess.com"]

[Event "Titled Tuesday Blitz July 26 Early 2022"]
[White "Tong, Hai Anh"]
[Black "Stanisz, Patryk"]
[WhiteFideId "12412805"]
[BlackFideId "1123106"]
[WhiteElo "1467"]
[BlackElo "1833"]
[Result "1/2-1/2"]
[Round "10"]
[TimeControl "180+1"]
[Date "2022.07.27"]
[WhiteClock "0:00:27"]
[BlackClock "0:00:04"]

1. d4 {[%clk 0:03:00]}  d5 {[%clk 0:02:59]} 2. c4 {[%clk 0:03:00]}  c6 {[%clk 0:02:59]} 3. Nf3 {[%clk 0:03:00]}  Nf6 {[%clk 0:02:59]} 4. Nc3 {[%clk 0:03:00]}  e6 {[%clk 0:03:00]} 5. Bg5 {[%clk 0:03:00]}  h6 {[%clk 0:03:00]} 6. Bxf6 {[%clk 0:03:00]}  Qxf6 {[%clk 0:03:01]} 7. e3 {[%clk 0:03:00]}  g6 {[%clk 0:03:00]} 8. Qb3 {[%clk 0:03:00]}  Nd7 {[%clk 0:02:59]} 9. cxd5 {[%clk 0:02:54]}  exd5 {[%clk 0:02:52]} 10. Bd3 {[%clk 0:02:55]}  Bg7 {[%clk 0:02:52]} 11. h4 {[%clk 0:02:55]}  h5 {[%clk 0:02:38]} 12. Ng5 {[%clk 0:02:39]}  O-O {[%clk 0:02:37]} 13. Rh3 {[%clk 0:02:35]}  Qe7 {[%clk 0:02:30]} 14. Kf1 {[%clk 0:02:30]}  Nf6 {[%clk 0:02:30]} 15. Rf3 {[%clk 0:02:29]}  Ng4 {[%clk 0:02:30]} 16. Kg1 {[%clk 0:02:26]}  Bf6 {[%clk 0:02:13]} 17. Qc2 {[%clk 0:02:05]}  Bxg5 {[%clk 0:02:09]} 18. hxg5 {[%clk 0:02:06]}  Qxg5 {[%clk 0:02:08]} 19. e4 {[%clk 0:02:07]}  Be6 {[%clk 0:01:59]} 20. Re1 {[%clk 0:02:03]}  Rad8 {[%clk 0:01:34]} 21. exd5 {[%clk 0:02:03]}  Bxd5 {[%clk 0:01:32]} 22. Nxd5 {[%clk 0:02:00]}  Rxd5 {[%clk 0:01:21]} 23. Re4 {[%clk 0:01:55]}  Rf5 {[%clk 0:01:01]} 24. Rxf5 {[%clk 0:01:54]}  Qxf5 {[%clk 0:00:59]} 25. f3 {[%clk 0:01:50]}  Nh6 {[%clk 0:00:50]} 26. Qb3 {[%clk 0:01:44]}  Qd7 {[%clk 0:00:35]} 27. Kh1 {[%clk 0:01:31]}  Nf5 {[%clk 0:00:32]} 28. Rf4 {[%clk 0:01:24]}  Nxd4 {[%clk 0:00:13]} 29. Qc4 {[%clk 0:01:22]}  Ne6 {[%clk 0:00:11]} 30. Rf6 {[%clk 0:01:21]}  Kg7 {[%clk 0:00:09]} 31. Qc3 {[%clk 0:01:09]}  Qd4 {[%clk 0:00:09]} 32. Qxd4 {[%clk 0:01:04]}  Nxd4 {[%clk 0:00:10]} 33. Rd6 {[%clk 0:01:04]}  Ne6 {[%clk 0:00:08]} 34. Bc4 {[%clk 0:01:03]}  Rd8 {[%clk 0:00:03]} 35. Rxd8 {[%clk 0:00:59]}  Nxd8 {[%clk 0:00:04]} 36. Kg1 {[%clk 0:00:59]}  Kf6 {[%clk 0:00:04]} 37. Kf2 {[%clk 0:00:59]}  Ke5 {[%clk 0:00:05]} 38. Ke3 {[%clk 0:01:00]}  b5 {[%clk 0:00:05]} 39. f4+ {[%clk 0:00:59]}  Kd6 {[%clk 0:00:04]} 40. Bd3 {[%clk 0:00:58]}  a6 {[%clk 0:00:04]} 41. b4 {[%clk 0:00:59]}  c5 {[%clk 0:00:04]} 42. bxc5+ {[%clk 0:00:57]}  Kxc5 {[%clk 0:00:05]} 43. f5 {[%clk 0:00:56]}  gxf5 {[%clk 0:00:03]} 44. Bxf5 {[%clk 0:00:57]}  Ne6 {[%clk 0:00:03]} 45. Be4 {[%clk 0:00:49]}  a5 {[%clk 0:00:03]} 46. Bf3 {[%clk 0:00:47]}  b4 {[%clk 0:00:04]} 47. Bxh5 {[%clk 0:00:47]}  a4 {[%clk 0:00:04]} 48. Bxf7 {[%clk 0:00:47]}  Ng5 {[%clk 0:00:04]} 49. Bg8 {[%clk 0:00:46]}  Kd6 {[%clk 0:00:02]} 50. Kf4 {[%clk 0:00:46]}  Ne6+ {[%clk 0:00:03]} 51. Ke3 {[%clk 0:00:43]}  Nc5 {[%clk 0:00:03]} 52. Bc4 {[%clk 0:00:40]}  b3 {[%clk 0:00:03]} 53. axb3 {[%clk 0:00:40]}  axb3 {[%clk 0:00:03]} 54. Kd2 {[%clk 0:00:40]}  Ke5 {[%clk 0:00:03]} 55. Kc3 {[%clk 0:00:40]}  Ne4+ {[%clk 0:00:02]} 56. Kb2 {[%clk 0:00:37]}  Nd2 {[%clk 0:00:02]} 57. Ba6 {[%clk 0:00:35]}  Kf4 {[%clk 0:00:01]} 58. Bb7 {[%clk 0:00:32]}  Kg3 {[%clk 0:00:02]} 59. Bd5 {[%clk 0:00:32]}  Nf1 {[%clk 0:00:01]} 60. Bb7 {[%clk 0:00:29]}  Ne3 {[%clk 0:00:02]} 61. Bc6 {[%clk 0:00:28]}  Nxg2 {[%clk 0:00:03]} 62. Ba8 {[%clk 0:00:28]}  Ne3 {[%clk 0:00:04]} 63. Kxb3 {[%clk 0:00:27]} 1/2-1/2


[Site "https://www.chess.com"]

[Event "Titled Tuesday Blitz July 26 Early 2022"]
[White "Wagner, Dennis"]
[Black "Pfreundt, Jakob"]
[WhiteFideId "24650684"]
[BlackFideId "12918156"]
[WhiteElo "2355"]
[BlackElo "2345"]
[Result "1/2-1/2"]
[Round "10"]
[TimeControl "180+1"]
[Date "2022.07.26"]
[WhiteClock "0:00:12"]
[BlackClock "0:00:05"]

1. e4 {[%clk 0:03:00]}  e5 {[%clk 0:02:59]} 2. Nf3 {[%clk 0:03:00]}  Nf6 {[%clk 0:03:00]} 3. Nxe5 {[%clk 0:02:58]}  d6 {[%clk 0:03:00]} 4. Nf3 {[%clk 0:02:59]}  Nxe4 {[%clk 0:03:01]} 5. Nc3 {[%clk 0:03:00]}  Nf6 {[%clk 0:03:01]} 6. d4 {[%clk 0:02:59]}  Be7 {[%clk 0:03:01]} 7. Bd3 {[%clk 0:02:59]}  O-O {[%clk 0:03:02]} 8. O-O {[%clk 0:03:00]}  a6 {[%clk 0:03:02]} 9. Re1 {[%clk 0:02:57]}  Re8 {[%clk 0:03:02]} 10. h3 {[%clk 0:02:53]}  b5 {[%clk 0:03:00]} 11. a4 {[%clk 0:02:32]}  b4 {[%clk 0:02:59]} 12. Ne4 {[%clk 0:02:33]}  Bb7 {[%clk 0:02:56]} 13. Nfg5 {[%clk 0:02:24]}  Nxe4 {[%clk 0:02:47]} 14. Nxe4 {[%clk 0:02:25]}  Nd7 {[%clk 0:02:43]} 15. Qh5 {[%clk 0:02:22]}  Bxe4 {[%clk 0:02:26]} 16. Bxe4 {[%clk 0:02:00]}  Nf6 {[%clk 0:02:26]} 17. Qf3 {[%clk 0:01:50]}  Nxe4 {[%clk 0:02:26]} 18. Rxe4 {[%clk 0:01:37]}  d5 {[%clk 0:02:14]} 19. Re5 {[%clk 0:01:38]}  c6 {[%clk 0:02:10]} 20. Bd2 {[%clk 0:01:37]}  Qd7 {[%clk 0:02:00]} 21. Rae1 {[%clk 0:01:35]}  Bd6 {[%clk 0:01:56]} 22. Qg4 {[%clk 0:01:14]}  f5 {[%clk 0:01:04]} 23. Rxe8+ {[%clk 0:01:14]}  Rxe8 {[%clk 0:01:05]} 24. Rxe8+ {[%clk 0:01:14]}  Qxe8 {[%clk 0:01:06]} 25. Qxf5 {[%clk 0:01:14]}  g6 {[%clk 0:00:46]} 26. Qf6 {[%clk 0:01:07]}  Qe7 {[%clk 0:00:45]} 27. Qxe7 {[%clk 0:01:03]}  Bxe7 {[%clk 0:00:46]} 28. Kf1 {[%clk 0:01:00]}  Kf7 {[%clk 0:00:41]} 29. Ke2 {[%clk 0:01:00]}  Ke6 {[%clk 0:00:40]} 30. g4 {[%clk 0:01:00]}  Bd6 {[%clk 0:00:35]} 31. Bg5 {[%clk 0:00:57]}  Bf8 {[%clk 0:00:34]} 32. Bf4 {[%clk 0:00:55]}  Be7 {[%clk 0:00:34]} 33. Be5 {[%clk 0:00:55]}  Bf8 {[%clk 0:00:33]} 34. Kf3 {[%clk 0:00:47]}  c5 {[%clk 0:00:29]} 35. Kg3 {[%clk 0:00:43]}  c4 {[%clk 0:00:24]} 36. b3 {[%clk 0:00:43]}  cxb3 {[%clk 0:00:23]} 37. cxb3 {[%clk 0:00:44]}  Be7 {[%clk 0:00:23]} 38. h4 {[%clk 0:00:30]}  Bf8 {[%clk 0:00:20]} 39. Kf4 {[%clk 0:00:27]}  Be7 {[%clk 0:00:20]} 40. g5 {[%clk 0:00:28]}  Bf8 {[%clk 0:00:19]} 41. Kg4 {[%clk 0:00:28]}  Be7 {[%clk 0:00:18]} 42. f4 {[%clk 0:00:21]}  Bf8 {[%clk 0:00:18]} 43. f5+ {[%clk 0:00:21]}  gxf5+ {[%clk 0:00:18]} 44. Kf4 {[%clk 0:00:22]}  h5 {[%clk 0:00:15]} 45. g6 {[%clk 0:00:21]}  Bh6+ {[%clk 0:00:15]} 46. Kf3 {[%clk 0:00:21]}  Bd2 {[%clk 0:00:14]} 47. Bh8 {[%clk 0:00:15]}  Bc3 {[%clk 0:00:13]} 48. Be5 {[%clk 0:00:16]}  Bd2 {[%clk 0:00:13]} 49. Kg3 {[%clk 0:00:16]}  Bc1 {[%clk 0:00:13]} 50. Kf2 {[%clk 0:00:16]}  Bd2 {[%clk 0:00:13]} 51. Kf3 {[%clk 0:00:15]}  Be1 {[%clk 0:00:12]} 52. Kf4 {[%clk 0:00:14]}  Bd2+ {[%clk 0:00:12]} 53. Kg3 {[%clk 0:00:14]}  Be1+ {[%clk 0:00:12]} 54. Kh3 {[%clk 0:00:14]}  Bd2 {[%clk 0:00:13]} 55. Bg7 {[%clk 0:00:14]}  Be3 {[%clk 0:00:12]} 56. Bf8 {[%clk 0:00:14]}  Bxd4 {[%clk 0:00:11]} 57. Bxb4 {[%clk 0:00:13]}  Kf6 {[%clk 0:00:12]} 58. Bd2 {[%clk 0:00:11]}  Kxg6 {[%clk 0:00:12]} 59. b4 {[%clk 0:00:12]}  Kf6 {[%clk 0:00:12]} 60. Kg3 {[%clk 0:00:12]}  Ke5 {[%clk 0:00:11]} 61. Kf3 {[%clk 0:00:12]}  Bb6 {[%clk 0:00:09]} 62. b5 {[%clk 0:00:12]}  axb5 {[%clk 0:00:08]} 63. axb5 {[%clk 0:00:13]}  Bd8 {[%clk 0:00:08]} 64. Bf4+ {[%clk 0:00:12]}  Ke6 {[%clk 0:00:07]} 65. Be3 {[%clk 0:00:11]}  Bxh4 {[%clk 0:00:07]} 66. b6 {[%clk 0:00:11]}  Bd8 {[%clk 0:00:07]} 67. b7 {[%clk 0:00:10]}  Bc7 {[%clk 0:00:08]} 68. Bf4 {[%clk 0:00:11]}  Kd7 {[%clk 0:00:08]} 69. b8=Q {[%clk 0:00:10]}  Bxb8 {[%clk 0:00:08]} 70. Bxb8 {[%clk 0:00:11]}  Ke6 {[%clk 0:00:08]} 71. Kf4 {[%clk 0:00:11]}  d4 {[%clk 0:00:07]} 72. Ba7 {[%clk 0:00:12]}  Kd5 {[%clk 0:00:05]} 73. Kxf5 {[%clk 0:00:11]}  d3 {[%clk 0:00:06]} 74. Be3 {[%clk 0:00:12]}  Kc4 {[%clk 0:00:05]} 75. Kg5 {[%clk 0:00:12]}  d2 {[%clk 0:00:04]} 76. Bxd2 {[%clk 0:00:12]}  h4 {[%clk 0:00:05]} 77. Kxh4 {[%clk 0:00:12]} 1/2-1/2


[Site "https://www.chess.com"]

[Event "Titled Tuesday Blitz July 26 Early 2022"]
[White "Yeremyan, Alen"]
[Black "Derraugh, Geordie"]
[WhiteFideId "13308998"]
[BlackFideId "2603950"]
[WhiteElo "2158"]
[BlackElo "2116"]
[Result "1-0"]
[Round "10"]
[TimeControl "180+1"]
[Date "2022.07.27"]
[WhiteClock "0:01:09"]
[BlackClock "0:00:01"]

1. g3 {[%clk 0:03:00]}  g6 {[%clk 0:02:59]} 2. Bg2 {[%clk 0:03:01]}  Bg7 {[%clk 0:03:00]} 3. e4 {[%clk 0:03:01]}  c6 {[%clk 0:02:59]} 4. Ne2 {[%clk 0:03:02]}  d6 {[%clk 0:02:58]} 5. O-O {[%clk 0:03:02]}  Nf6 {[%clk 0:02:59]} 6. d4 {[%clk 0:03:03]}  O-O {[%clk 0:02:59]} 7. f4 {[%clk 0:03:03]}  e5 {[%clk 0:02:56]} 8. c4 {[%clk 0:03:03]}  Re8 {[%clk 0:02:54]} 9. Nbc3 {[%clk 0:03:03]}  Qb6 {[%clk 0:02:51]} 10. Kh1 {[%clk 0:02:59]}  exd4 {[%clk 0:02:43]} 11. Nxd4 {[%clk 0:03:00]}  Bg4 {[%clk 0:02:42]} 12. Qd3 {[%clk 0:02:55]}  Na6 {[%clk 0:02:33]} 13. Be3 {[%clk 0:02:50]}  Nc5 {[%clk 0:02:33]} 14. Qc2 {[%clk 0:02:49]}  Qb4 {[%clk 0:02:09]} 15. b3 {[%clk 0:02:44]}  Nfxe4 {[%clk 0:01:57]} 16. Nxe4 {[%clk 0:02:41]}  Nxe4 {[%clk 0:01:57]} 17. Bxe4 {[%clk 0:02:41]}  f5 {[%clk 0:01:47]} 18. a3 {[%clk 0:02:29]}  Qa5 {[%clk 0:01:43]} 19. Bd2 {[%clk 0:02:20]}  Qc7 {[%clk 0:01:28]} 20. Bg2 {[%clk 0:01:59]}  Bxd4 {[%clk 0:01:26]} 21. Rae1 {[%clk 0:02:00]}  Be2 {[%clk 0:01:24]} 22. Rxe2 {[%clk 0:02:00]}  Rxe2 {[%clk 0:01:24]} 23. Qd3 {[%clk 0:02:01]}  Rxd2 {[%clk 0:01:18]} 24. Qxd2 {[%clk 0:02:02]}  Bf6 {[%clk 0:01:15]} 25. Re1 {[%clk 0:02:02]}  Qd7 {[%clk 0:01:13]} 26. h4 {[%clk 0:02:02]}  Rd8 {[%clk 0:01:10]} 27. Qe3 {[%clk 0:02:00]}  a6 {[%clk 0:01:09]} 28. Qb6 {[%clk 0:01:59]}  Rf8 {[%clk 0:00:59]} 29. b4 {[%clk 0:01:59]}  Rf7 {[%clk 0:00:35]} 30. a4 {[%clk 0:01:49]}  Kg7 {[%clk 0:00:28]} 31. b5 {[%clk 0:01:49]}  axb5 {[%clk 0:00:27]} 32. cxb5 {[%clk 0:01:50]}  d5 {[%clk 0:00:24]} 33. Rd1 {[%clk 0:01:45]}  Bd8 {[%clk 0:00:19]} 34. Qd4+ {[%clk 0:01:45]}  Bf6 {[%clk 0:00:19]} 35. Qb6 {[%clk 0:01:45]}  Qd8 {[%clk 0:00:17]} 36. Qc5 {[%clk 0:01:45]}  Rc7 {[%clk 0:00:12]} 37. Kh2 {[%clk 0:01:41]}  d4 {[%clk 0:00:12]} 38. bxc6 {[%clk 0:01:36]}  bxc6 {[%clk 0:00:12]} 39. a5 {[%clk 0:01:36]}  Rc8 {[%clk 0:00:12]} 40. a6 {[%clk 0:01:37]}  Ra8 {[%clk 0:00:07]} 41. Qxc6 {[%clk 0:01:37]}  Ra7 {[%clk 0:00:05]} 42. Qb5 {[%clk 0:01:37]}  Qc7 {[%clk 0:00:05]} 43. Rd2 {[%clk 0:01:33]}  Qc8 {[%clk 0:00:04]} 44. Bb7 {[%clk 0:01:32]}  Qc3 {[%clk 0:00:04]} 45. Qd3 {[%clk 0:01:31]}  Qc1 {[%clk 0:00:03]} 46. Re2 {[%clk 0:01:30]}  Qa1 {[%clk 0:00:02]} 47. Qb5 {[%clk 0:01:29]}  Qd1 {[%clk 0:00:01]} 48. Qd7+ {[%clk 0:01:15]}  Kh6 {[%clk 0:00:01]} 49. Rg2 {[%clk 0:01:12]}  d3 {[%clk 0:00:01]} 50. Qd6 {[%clk 0:01:09]} 1-0


[Site "https://www.chess.com"]